fUSD/lending_fUSD_20251122
["ID","MTS","AMOUNT","RATE_DAILY","PERIOD"]
[394637100,1763801440896,-500.0,0.00016411,2]
[394637101,1763801440907,-150.0,0.00016411,2]
[394637102,1763801440919,-197.98536225,0.00016411,2]
[394637103,1763801440930,-150.0,0.00016411,2]
[394637104,1763801440942,-500.0,0.00016411,2]
[394637105,1763801440953,-500.0,0.00016411,2]
[394637106,1763801440964,-455.57344451,0.00016422,2]
[394637107,1763801440979,-319.78009307,0.00016422,2]
[394637108,1763801440989,-101.17490693,0.00016434,2]
[394637109,1763801441009,-83.86335493,0.00016434,2]
[394637110,1763801441019,-630.4409973,0.00016434,2]
[394637111,1763801441032,-2020.14950728,0.00016434,2]
[394637112,1763801441042,-141.69055299,0.00016434,2]
[394637127,1763801444042,-449.81020287,0.00016434,2]
[394637128,1763801444053,-1355.0,0.00016436,2]
[394637129,1763801444063,-150.0,0.00016436,2]
[394637130,1763801444072,-438.54419851,0.00016436,2]
[394637131,1763801444082,-500.0,0.00016436,2]
[394637132,1763801444092,-500.0,0.00016436,2]
[394637133,1763801444101,-500.0,0.00016436,2]
[394637134,1763801444112,-150.0,0.00016436,2]
[394637135,1763801444126,-500.0,0.00016436,2]
[394637136,1763801444136,-169.5838021,0.00016437,2]
[394637137,1763801444146,-500.0,0.00016437,2]
[394637138,1763801444156,-336.03492657,0.00016437,2]
[394637139,1763801444168,-500.0,0.00016437,2]
[394637140,1763801444178,-500.0,0.00016437,2]
[394637141,1763801444189,-500.0,0.00016437,2]
[394637142,1763801444203,-500.0,0.00016437,2]
[394637143,1763801444212,-500.0,0.00016437,2]
[394637144,1763801444222,-500.0,0.00016437,2]
[394637145,1763801444233,-641.7495824,0.00016437,2]
[394637146,1763801444243,-500.0,0.00016437,2]
[394637147,1763801444252,-500.0,0.00016437,2]
[394637148,1763801444262,-438.72,0.00016437,2]
[394637149,1763801444272,-400.0,0.00016438,2]
[394637150,1763801444281,-591.0888069,0.00016438,2]
[394637151,1763801444291,-500.0,0.00016438,2]
[394637152,1763801444301,-500.0,0.00016438,2]
[394637153,1763801444310,-500.0,0.00016438,2]
[394637154,1763801444320,-500.0,0.00016438,2]
[394637155,1763801444329,-500.0,0.00016438,2]
[394637156,1763801444339,-500.0,0.00016438,2]
[394637157,1763801444350,-500.0,0.00016438,2]
[394637158,1763801444359,-500.0,0.00016438,2]
[394637159,1763801444369,-500.0,0.00016438,2]
[394637160,1763801444379,-472.0,0.00016438,2]
[394637161,1763801444388,-500.0,0.00016438,2]
[394637162,1763801444398,-500.0,0.00016438,2]
[394637163,1763801444408,-500.0,0.00016438,2]
[394637164,1763801444419,-500.0,0.00016438,2]
[394637165,1763801444429,-508.8176842,0.00016438,2]
[394637166,1763801444439,-511.53338736,0.00016438,2]
[394637167,1763801444449,-612.7078272,0.00016438,2]
[394637168,1763801444459,-500.0,0.00016438,2]
[394637169,1763801444469,-500.0,0.00016438,2]
[394637170,1763801444479,-500.0,0.00016438,2]
[394637171,1763801444489,-500.0,0.00016438,2]
[394637172,1763801444498,-500.0,0.00016438,2]
[394637173,1763801444508,-500.0,0.00016438,2]
[394637174,1763801444518,-504.10554933,0.00016438,2]
[394637175,1763801444528,-500.0,0.00016438,2]
[394637176,1763801444537,-500.0,0.00016438,2]
[394637177,1763801444547,-500.0,0.00016438,2]
[394637178,1763801444558,-500.0,0.00016438,2]
[394637179,1763801444568,-651.27,0.00016438,2]
[394637180,1763801444578,-500.0,0.00016438,2]
[394637181,1763801444588,-500.0,0.00016438,2]
[394637182,1763801444598,-709.37,0.00016438,2]
[394637183,1763801444608,-500.0,0.00016438,2]
[394637184,1763801444618,-837.1,0.00016438,2]
[394637185,1763801444627,-500.0,0.00016438,2]
[394637186,1763801444637,-414.93365693,0.00016438,2]
[394637187,1763801444646,-500.0,0.00016438,2]
[394637188,1763801444656,-500.0,0.00016438,2]
[394637189,1763801444666,-703.2,0.00016438,2]
[394637190,1763801444676,-500.0,0.00016438,2]
[394637191,1763801444686,-1000.85,0.00016438,2]
[394637192,1763801444696,-500.0,0.00016438,2]
[394637193,1763801444706,-500.0,0.00016438,2]
[394637194,1763801444715,-500.0,0.00016438,2]
[394637195,1763801444725,-500.0,0.00016438,2]
[394637196,1763801444735,-500.0,0.00016438,2]
[394637197,1763801444744,-1230.75,0.00016438,2]
[394637198,1763801444754,-500.0,0.00016438,2]
[394637199,1763801444763,-500.0,0.00016438,2]
[394637200,1763801444772,-500.0,0.00016438,2]
[394637201,1763801444781,-500.0,0.00016438,2]
[394637202,1763801444790,-500.0,0.00016438,2]
[394637203,1763801444800,-500.0,0.00016438,2]
[394637204,1763801444809,-500.0,0.00016438,2]
[394637205,1763801444819,-500.0,0.00016438,2]
[394637206,1763801444828,-500.0,0.00016438,2]
[394637207,1763801444837,-293.83037563,0.00016438,2]
[394637208,1763801444872,-500.0,0.00016137,2]
[394637209,1763801444881,-206.16962437,0.00016438,2]
[394637210,1763801444891,-500.0,0.00016438,2]
[394637211,1763801444899,-161.73386606,0.00016438,2]
[394637212,1763801444910,-338.26613394,0.00016438,2]
[394637213,1763801444921,-500.0,0.00016438,2]
[394637214,1763801444931,-423.91008285,0.00016438,2]
[394637215,1763801444942,-81.63991715,0.00016438,2]
[394637216,1763801444952,-500.0,0.00016438,2]
[394637217,1763801444961,-500.0,0.00016438,2]
[394637218,1763801444971,-471.79768553,0.00016438,2]
[394637219,1763801444983,-511.43231447,0.00016438,2]
[394637220,1763801444992,-500.0,0.00016438,2]
[394637221,1763801445001,-619.25566239,0.00016438,2]
[394637222,1763801445012,-145.86433761,0.00016438,2]
[394637223,1763801445022,-500.0,0.00016438,2]
[394637224,1763801445031,-250.84360238,0.00016438,2]
[394637225,1763801445042,-249.15639762,0.00016438,2]
[394637226,1763801445052,-500.0,0.00016438,2]
[394637227,1763801445061,-97.79988407,0.00016438,2]
[394637228,1763801445072,-402.20011593,0.00016438,2]
[394637229,1763801445082,-234.6728991,0.00016438,2]
[394637230,1763801445093,-265.3271009,0.00016438,2]
[394637231,1763801445103,-164.66208891,0.00016438,2]
[394637232,1763801445114,-335.33791109,0.00016438,2]
[394637233,1763801445128,-500.0,0.00016438,2]
[394637234,1763801445137,-500.0,0.00016438,2]
[394637235,1763801445146,-500.0,0.00016438,2]
[394637236,1763801445155,-1095.44,0.00016438,2]
[394637237,1763801445167,-575.76856784,0.00016438,2]
[394637238,1763801445176,-610.86,0.00016438,2]
[394637239,1763801445186,-500.0,0.00016438,2]
[394637240,1763801445197,-76.16826088,0.00016438,2]
[394637259,1763801446191,-150.0,0.00016137,2]
[394637260,1763801446200,-503.76538744,0.00016274,2]
[394637261,1763801446210,-322.74461256,0.00016438,2]
[394637267,1763801692049,698.93,0.00013699,2]
[394637268,1763801890055,150.0,0.00015144,120]
[394637274,1763802307758,160.0,0.00022,30]
[394637275,1763802308607,160.0,0.00022,30]
[394637276,1763802308692,160.0,0.00022,30]
[394637283,1763802606746,499.0,0.00022,30]
[394637286,1763802631330,-166.66,0.00014835,2]
[394637287,1763802631339,-172.07205562,0.00014929,2]
[394637288,1763802631349,-4268.05224687,0.00015,2]
[394637289,1763802631359,-338.19806645,0.00015029,2]
[394637290,1763802631370,-271.80193355,0.00015029,2]
[394637291,1763802631380,-150.0,0.00015144,2]
[394637292,1763802631388,-166.66,0.00015147,2]
[394637293,1763802631397,-250.0,0.00015156,2]
[394637294,1763802631406,-208.21,0.00015243,2]
[394637295,1763802631415,-200.0,0.0001528,2]
[394637296,1763802631424,-300.0,0.00015286,2]
[394637297,1763802631433,-300.0,0.00015286,2]
[394637298,1763802631442,-1200.0,0.00015286,2]
[394637299,1763802631451,-994.49214537,0.00015287,2]
[394637300,1763802631471,-205.50785463,0.00015287,2]
[394637301,1763802631480,-300.0,0.00015287,2]
[394637302,1763802631489,-150.0,0.00015288,2]
[394637303,1763802631498,-150.0,0.00015288,2]
[394637304,1763802631507,-150.0,0.00015288,2]
[394637305,1763802631517,-150.0,0.00015288,2]
[394637306,1763802631530,-150.0,0.00015288,2]
[394637307,1763802631539,-150.00000001,0.00015288,2]
[394637308,1763802631548,-150.0,0.00015288,2]
[394637310,1763802631557,-150.0,0.00015288,2]
[394637312,1763802631568,-166.66,0.00015459,2]
[394637313,1763802631577,-166.68,0.00015679,2]
[394637314,1763802631586,-578.20924308,0.0001571,2]
[394637315,1763802631597,-166.66,0.00015772,2]
[394637316,1763802631606,-172.07205562,0.00015838,2]
[394637317,1763802631615,-411.57395041,0.00015838,2]
[394637318,1763802631624,-319.67830682,0.000159,2]
[394637319,1763802631633,-319.6783068,0.000159,2]
[394637320,1763802631643,-319.6783068,0.000159,2]
[394637321,1763802631652,-319.6783068,0.000159,2]
[394637322,1763802631661,-151.0,0.00015935,2]
[394637323,1763802631671,-151.0,0.00015935,2]
[394637324,1763802631680,-151.0,0.00015935,2]
[394637325,1763802631690,-300.0,0.00015936,2]
[394637326,1763802631700,-307.89461141,0.00015937,2]
[394637327,1763802631709,-500.0,0.00015937,2]
[394637328,1763802631719,-500.0,0.00015937,2]
[394637329,1763802631728,-413.88740078,0.00015937,2]
[394637330,1763802631738,-500.0,0.00015937,2]
[394637331,1763802631747,-500.0,0.00015937,2]
[394637332,1763802631756,-500.0,0.00015937,2]
[394637333,1763802631765,-500.0,0.00015937,2]
[394637334,1763802631775,-500.0,0.00015937,2]
[394637335,1763802631785,-500.0,0.00015937,2]
[394637336,1763802631797,-500.0,0.00015937,2]
[394637337,1763802631814,-500.0,0.00015937,2]
[394637338,1763802631834,-500.0,0.00015937,2]
[394637339,1763802631844,-500.0,0.00015937,2]
[394637341,1763802631856,-500.0,0.00015937,2]
[394637343,1763802631865,-500.0,0.00015937,2]
[394637345,1763802631874,-500.0,0.00015937,2]
[394637347,1763802631884,-397.59126841,0.00015937,2]
[394637348,1763802631895,-500.0,0.00015937,2]
[394637350,1763802631908,-500.0,0.00015937,2]
[394637352,1763802631918,-500.0,0.00015937,2]
[394637354,1763802631927,-500.0,0.00015937,2]
[394637356,1763802631937,-250.0,0.00015937,2]
[394637358,1763802631947,-280.5422,0.00015938,2]
[394637360,1763802631958,-1000.0,0.00015938,2]
[394637362,1763802631969,-6797.1660828,0.00015938,2]
[394637364,1763802631985,-39052.11694391,0.00015938,2]
[394637367,1763802631997,-561.33187326,0.00015938,2]
[394637370,1763802632016,-507.90960096,0.00015938,2]
[394637372,1763802632032,-3354.19650951,0.00015938,2]
[394637374,1763802632043,-1109.653476,0.00015938,2]
[394637491,1763802637294,-496.72391651,0.00015938,2]
[394637492,1763802637305,-8460.0,0.00015938,2]
[394637493,1763802637317,-126818.06779307,0.00015938,2]
[394637494,1763802637328,-11833.27062458,0.00015938,2]
[394637496,1763802639552,-74525.7890794,0.00015938,2]
[394637497,1763802639563,-2062.0,0.00015938,2]
[394637498,1763802639572,-295.75037793,0.00015966,2]
[394637499,1763802639582,-1711.1781863,0.00015966,2]
[394637500,1763802639593,-151.0,0.00016019,2]
[394637501,1763802639603,-151.0,0.00016019,2]
[394637502,1763802639612,-151.0,0.00016019,2]
[394637503,1763802639622,-151.0,0.00016019,2]
[394637504,1763802639631,-151.0,0.00016019,2]
[394637505,1763802639640,-151.0,0.00016019,2]
[394637506,1763802639649,-151.0,0.00016019,2]
[394637507,1763802639658,-151.0,0.00016019,2]
[394637508,1763802639667,-151.0,0.00016019,2]
[394637509,1763802639676,-151.0,0.00016019,2]
[394637510,1763802639685,-151.0,0.00016019,2]
[394637511,1763802639694,-151.0,0.00016019,2]
[394637512,1763802639703,-151.0,0.00016019,2]
[394637513,1763802639712,-151.0,0.00016019,2]
[394637514,1763802639721,-151.0,0.00016019,2]
[394637515,1763802639730,-151.0,0.00016019,2]
[394637516,1763802639739,-151.0,0.00016019,2]
[394637517,1763802639748,-3000.0,0.00016019,2]
[394637518,1763802639757,-151.0,0.00016019,2]
[394637519,1763802639768,-3000.0,0.00016019,2]
[394637520,1763802639778,-1436.67516258,0.00016019,2]
[394637521,1763802639788,-151.0,0.00016019,2]
[394637522,1763802639798,-151.0,0.00016019,2]
[394637523,1763802639807,-1977.0,0.00016021,2]
[394637524,1763802639816,-500.0,0.00016037,2]
[394637525,1763802639825,-1977.0,0.00016066,2]
[394637526,1763802639834,-295.75037793,0.0001607,2]
[394637527,1763802639843,-1711.17818625,0.0001607,2]
[394637528,1763802639852,-166.66,0.00016084,2]
[394637529,1763802639861,-150.0,0.00016137,2]
[394637530,1763802639870,-500.0,0.00016137,2]
[394637531,1763802639879,-295.75037793,0.00016174,2]
[394637532,1763802639889,-1711.17818625,0.00016174,2]
[394637533,1763802639898,-1000.0,0.000162,2]
[394637534,1763802639908,-1976.92274,0.0001627,2]
[394637535,1763802639917,-295.75037793,0.00016277,2]
[394637536,1763802639926,-1711.17818625,0.00016277,2]
[394637537,1763802639936,-500.0,0.00016289,2]
[394637538,1763802639951,-300.0,0.00016318,2]
[394637539,1763802639961,-408.31362115,0.00016318,2]
[394637540,1763802639970,-195.0,0.00016318,2]
[394637542,1763802639979,-250.0,0.00016318,2]
[394637545,1763802639988,-217.30260112,0.00016338,2]
[394637546,1763802639997,-150.0,0.00016356,2]
[394637548,1763802640006,-295.75037793,0.00016381,2]
[394637549,1763802640016,-1711.17818625,0.00016381,2]
[394637550,1763802640026,-166.66,0.00016396,2]
[394637551,1763802640035,-1000.0,0.000164,2]
[394637552,1763802640044,-4452.5237433,0.00016425,2]
[394637553,1763802640053,-4076.0902983,0.00016425,2]
[394637554,1763802640063,-150.0,0.00016436,2]
[394637555,1763802640072,-150.0,0.00016436,2]
[394637556,1763802640081,-150.0,0.00016436,2]
[394637557,1763802640090,-150.0,0.00016436,2]
[394637558,1763802640100,-500.0,0.00016436,2]
[394637559,1763802640109,-150.0,0.00016436,2]
[394637560,1763802640119,-150.0,0.00016436,2]
[394637561,1763802640128,-150.0,0.00016436,2]
[394637562,1763802640138,-150.0,0.00016436,2]
[394637563,1763802640147,-150.0,0.00016436,2]
[394637564,1763802640156,-500.0,0.00016436,2]
[394637565,1763802640166,-500.0,0.00016436,2]
[394637566,1763802640175,-150.0,0.00016436,2]
[394637567,1763802640184,-679.0,0.00016436,2]
[394637568,1763802640195,-150.0,0.00016436,2]
[394637569,1763802640205,-500.0,0.00016436,2]
[394637570,1763802640214,-156.91420768,0.00016436,2]
[394637571,1763802640224,-500.0,0.00016436,2]
[394637572,1763802640233,-150.0,0.00016436,2]
[394637573,1763802640243,-150.0,0.00016436,2]
[394637574,1763802640252,-500.0,0.00016436,2]
[394637575,1763802640262,-205.08574528,0.00016436,2]
[394637576,1763802640272,-500.0,0.00016436,2]
[394637577,1763802640282,-500.0,0.00016436,2]
[394637578,1763802640292,-500.0,0.00016436,2]
[394637579,1763802640304,-150.0,0.00016436,2]
[394637580,1763802640314,-500.0,0.00016436,2]
[394637581,1763802640323,-500.0,0.00016436,2]
[394637582,1763802640333,-150.0,0.00016436,2]
[394637583,1763802640342,-150.0,0.00016436,2]
[394637584,1763802640352,-150.0,0.00016436,2]
[394637585,1763802640362,-490.0,0.00016436,2]
[394637586,1763802640371,-577.0,0.00016436,2]
[394637587,1763802640380,-500.0,0.00016437,2]
[394637588,1763802640389,-500.0,0.00016437,2]
[394637589,1763802640398,-500.0,0.00016437,2]
[394637590,1763802640407,-500.0,0.00016438,2]
[394637591,1763802640417,-500.0,0.00016438,2]
[394637592,1763802640427,-500.0,0.00016438,2]
[394637593,1763802640437,-500.0,0.00016438,2]
[394637594,1763802640446,-500.0,0.00016438,2]
[394637595,1763802640457,-500.0,0.00016438,2]
[394637596,1763802640467,-500.0,0.00016438,2]
[394637597,1763802640475,-500.0,0.00016438,2]
[394637598,1763802640486,-1000.0,0.00016438,2]
[394637599,1763802640495,-1000.0,0.00016438,2]
[394637600,1763802640505,-1000.0,0.00016438,2]
[394637601,1763802640514,-1000.0,0.00016438,2]
[394637602,1763802640528,-1000.0,0.00016438,2]
[394637603,1763802640537,-354.171,0.00016438,2]
[394637604,1763802640546,-1000.0,0.00016438,2]
[394637605,1763802640555,-482.997,0.00016438,2]
[394637606,1763802640566,-156.9083611,0.00016438,2]
[394637607,1763802640575,-500.0,0.00016438,2]
[394637608,1763802640584,-500.0,0.00016438,2]
[394637609,1763802640594,-500.0,0.00016438,2]
[394637610,1763802640604,-517.34219156,0.00016438,2]
[394637611,1763802640614,-500.0,0.00016438,2]
[394637612,1763802640623,-500.0,0.00016438,2]
[394637613,1763802640633,-500.0,0.00016438,2]
[394637614,1763802640642,-500.0,0.00016438,2]
[394637615,1763802640651,-500.0,0.00016438,2]
[394637616,1763802640660,-1243.41615079,0.00016438,2]
[394637617,1763802640669,-200.0,0.00016438,2]
[394637618,1763802640679,-500.0,0.00016438,2]
[394637619,1763802640702,-195.50218192,0.00016438,2]
[394637620,1763802640718,-500.0,0.00016438,2]
[394637621,1763802640727,-500.0,0.00016438,2]
[394637622,1763802640737,-555.59539856,0.00016438,2]
[394637623,1763802640745,-500.0,0.00016438,2]
[394637624,1763802640755,-500.0,0.00016438,2]
[394637625,1763802640763,-274.19867702,0.00016438,2]
[394637626,1763802640773,-151.43891233,0.00016438,2]
[394637627,1763802640782,-615.34,0.00016438,2]
[394637628,1763802640792,-500.0,0.00016438,2]
[394637629,1763802640802,-500.0,0.00016438,2]
[394637630,1763802640811,-500.0,0.00016438,2]
[394637631,1763802640821,-932.22,0.00016438,2]
[394637632,1763802640830,-500.0,0.00016438,2]
[394637633,1763802640840,-500.0,0.00016438,2]
[394637634,1763802640850,-500.0,0.00016438,2]
[394637635,1763802640860,-500.0,0.00016438,2]
[394637636,1763802640869,-985.07,0.00016438,2]
[394637637,1763802640878,-787.1,0.00016438,2]
[394637638,1763802640887,-862.84,0.00016438,2]
[394637639,1763802640896,-517.73,0.00016438,2]
[394637640,1763802640906,-356.86502612,0.00016438,2]
[394637641,1763802640915,-500.0,0.00016438,2]
[394637642,1763802640924,-500.0,0.00016438,2]
[394637643,1763802640934,-500.0,0.00016438,2]
[394637644,1763802640943,-500.0,0.00016438,2]
[394637645,1763802640952,-500.0,0.00016438,2]
[394637646,1763802640961,-614.91,0.00016438,2]
[394637647,1763802640971,-500.0,0.00016438,2]
[394637648,1763802640980,-420.59153474,0.00016438,2]
[394637649,1763802640990,-500.0,0.00016438,2]
[394637650,1763802640999,-500.0,0.00016438,2]
[394637651,1763802641009,-500.0,0.00016438,2]
[394637652,1763802641019,-500.0,0.00016438,2]
[394637653,1763802641028,-688.96,0.00016438,2]
[394637654,1763802641038,-500.0,0.00016438,2]
[394637655,1763802641047,-417.55793703,0.00016438,2]
[394637656,1763802641057,-572.27304577,0.00016438,2]
[394637657,1763802641066,-500.0,0.00016438,2]
[394637658,1763802641076,-793.12,0.00016438,2]
[394637659,1763802641085,-647.57,0.00016438,2]
[394637660,1763802641095,-563.09,0.00016438,2]
[394637661,1763802641104,-500.0,0.00016438,2]
[394637662,1763802641113,-500.0,0.00016438,2]
[394637663,1763802641122,-153.078257,0.00016438,2]
[394637664,1763802641131,-500.0,0.00016438,2]
[394637665,1763802641140,-500.0,0.00016438,2]
[394637666,1763802641149,-546.24,0.00016438,2]
[394637667,1763802641159,-750.01,0.00016438,2]
[394637668,1763802641168,-536.03,0.00016438,2]
[394637669,1763802641177,-500.0,0.00016438,2]
[394637670,1763802641186,-500.0,0.00016438,2]
[394637671,1763802641195,-533.11649035,0.00016438,2]
[394637672,1763802641204,-719.72,0.00016438,2]
[394637673,1763802641214,-219.75783319,0.00016438,2]
[394637674,1763802641223,-500.0,0.00016438,2]
[394637675,1763802641232,-500.0,0.00016438,2]
[394637676,1763802641242,-500.0,0.00016438,2]
[394637677,1763802641251,-500.0,0.00016438,2]
[394637678,1763802641259,-700.34,0.00016438,2]
[394637679,1763802641268,-500.0,0.00016438,2]
[394637680,1763802641277,-500.0,0.00016438,2]
[394637681,1763802641287,-749.13,0.00016438,2]
[394637682,1763802641296,-506.94,0.00016438,2]
[394637683,1763802641305,-555.54,0.00016438,2]
[394637684,1763802641314,-500.0,0.00016438,2]
[394637685,1763802641323,-500.0,0.00016438,2]
[394637686,1763802641332,-534.68,0.00016438,2]
[394637687,1763802641341,-556.06,0.00016438,2]
[394637688,1763802641351,-500.0,0.00016438,2]
[394637689,1763802641360,-630.30123257,0.00016438,2]
[394637690,1763802641369,-530.98,0.00016438,2]
[394637691,1763802641378,-593.38640435,0.00016438,2]
[394637692,1763802641387,-1201.33,0.00016438,2]
[394637693,1763802641396,-500.0,0.00016438,2]
[394637694,1763802641405,-500.0,0.00016438,2]
[394637695,1763802641414,-500.0,0.00016438,2]
[394637696,1763802641423,-546.49665015,0.00016438,2]
[394637697,1763802641432,-500.0,0.00016438,2]
[394637698,1763802641441,-500.0,0.00016438,2]
[394637699,1763802641450,-500.0,0.00016438,2]
[394637700,1763802641459,-826.33,0.00016438,2]
[394637701,1763802641468,-557.35,0.00016438,2]
[394637702,1763802641476,-942.27,0.00016438,2]
[394637703,1763802641486,-793.55,0.00016438,2]
[394637704,1763802641495,-500.0,0.00016438,2]
[394637705,1763802641504,-500.0,0.00016438,2]
[394637706,1763802641513,-500.0,0.00016438,2]
[394637707,1763802641527,-500.0,0.00016438,2]
[394637708,1763802641536,-500.0,0.00016438,2]
[394637709,1763802641545,-238.61278333,0.00016438,2]
[394637710,1763802641554,-475.75213404,0.00016438,2]
[394637711,1763802641564,-500.0,0.00016438,2]
[394637712,1763802641573,-500.0,0.00016438,2]
[394637713,1763802641582,-500.0,0.00016438,2]
[394637714,1763802641591,-500.0,0.00016438,2]
[394637715,1763802641603,-984.26,0.00016438,2]
[394637716,1763802641612,-500.0,0.00016438,2]
[394637717,1763802641621,-500.0,0.00016438,2]
[394637718,1763802641630,-765.92,0.00016438,2]
[394637719,1763802641639,-500.0,0.00016438,2]
[394637720,1763802641647,-500.0,0.00016438,2]
[394637721,1763802641656,-500.0,0.00016438,2]
[394637722,1763802641665,-500.0,0.00016438,2]
[394637723,1763802641675,-724.86,0.00016438,2]
[394637724,1763802641684,-500.0,0.00016438,2]
[394637725,1763802641693,-500.0,0.00016438,2]
[394637726,1763802641703,-696.06,0.00016438,2]
[394637727,1763802641713,-500.0,0.00016438,2]
[394637728,1763802641722,-672.89,0.00016438,2]
[394637729,1763802641733,-500.0,0.00016438,2]
[394637730,1763802641743,-500.0,0.00016438,2]
[394637731,1763802641752,-500.0,0.00016438,2]
[394637732,1763802641762,-500.0,0.00016438,2]
[394637733,1763802641771,-500.0,0.00016438,2]
[394637734,1763802641781,-500.0,0.00016438,2]
[394637735,1763802641790,-500.0,0.00016438,2]
[394637736,1763802641799,-500.0,0.00016438,2]
[394637737,1763802641808,-500.0,0.00016438,2]
[394637738,1763802641818,-500.0,0.00016438,2]
[394637739,1763802641827,-500.0,0.00016438,2]
[394637740,1763802641836,-500.0,0.00016438,2]
[394637741,1763802641845,-876.89,0.00016438,2]
[394637742,1763802641855,-500.0,0.00016438,2]
[394637743,1763802641864,-500.0,0.00016438,2]
[394637744,1763802641875,-500.0,0.00016438,2]
[394637745,1763802641885,-500.0,0.00016438,2]
[394637746,1763802641894,-500.0,0.00016438,2]
[394637747,1763802641903,-500.0,0.00016438,2]
[394637748,1763802641913,-949.35,0.00016438,2]
[394637749,1763802641922,-500.0,0.00016438,2]
[394637750,1763802641931,-188.08885769,0.00016438,2]
[394637751,1763802641941,-500.0,0.00016438,2]
[394637752,1763802641950,-500.0,0.00016438,2]
[394637753,1763802641959,-500.0,0.00016438,2]
[394637754,1763802641968,-500.0,0.00016438,2]
[394637755,1763802641978,-500.0,0.00016438,2]
[394637756,1763802641988,-500.0,0.00016438,2]
[394637757,1763802641997,-500.0,0.00016438,2]
[394637758,1763802642007,-1166.95,0.00016438,2]
[394637759,1763802642016,-500.0,0.00016438,2]
[394637760,1763802642025,-500.0,0.00016438,2]
[394637761,1763802642035,-520.02,0.00016438,2]
[394637762,1763802642044,-500.0,0.00016438,2]
[394637763,1763802642053,-500.0,0.00016438,2]
[394637764,1763802642063,-500.0,0.00016438,2]
[394637765,1763802642072,-500.0,0.00016438,2]
[394637766,1763802642082,-500.0,0.00016438,2]
[394637767,1763802642091,-546.02135192,0.00016438,2]
[394637768,1763802642100,-500.0,0.00016438,2]
[394637769,1763802642110,-500.0,0.00016438,2]
[394637770,1763802642120,-500.0,0.00016438,2]
[394637771,1763802642129,-509.55451786,0.00016438,2]
[394637772,1763802642139,-500.0,0.00016438,2]
[394637773,1763802642148,-537.49,0.00016438,2]
[394637774,1763802642158,-619.79,0.00016438,2]
[394637775,1763802642167,-914.17,0.00016438,2]
[394637776,1763802642176,-500.0,0.00016438,2]
[394637777,1763802642185,-500.0,0.00016438,2]
[394637778,1763802642194,-417.12740813,0.00016438,2]
[394637779,1763802642202,-500.0,0.00016438,2]
[394637780,1763802642211,-500.0,0.00016438,2]
[394637781,1763802642221,-500.0,0.00016438,2]
[394637782,1763802642230,-428.60804998,0.00016438,2]
[394637783,1763802642241,-500.0,0.00016438,2]
[394637784,1763802642250,-500.0,0.00016438,2]
[394637785,1763802642259,-500.0,0.00016438,2]
[394637786,1763802642268,-517.41793782,0.00016438,2]
[394637787,1763802642278,-500.0,0.00016438,2]
[394637788,1763802642287,-500.0,0.00016438,2]
[394637789,1763802642295,-500.0,0.00016438,2]
[394637790,1763802642305,-500.0,0.00016438,2]